[Event "Turkish Youth Championships 2023"]
[Site "Samsun"]
[Date "2023.05.22"]
[Round "6.7"]
[White "Gungor, Cihan Akif"]
[Black "Isilak, Enes"]
[Result "0-1"]
[WhiteElo "1771"]
[BlackElo "2181"]
[Annotator "TA"]
[PlyCount "100"]
[EventDate "2023.05.19"]
[EventType "swiss"]
[EventCountry "TUR"]
[TimeControl "5400+30"]

{[%evp 14,100,13,13,13,9,9,0,0,-8,-14,-6,6,0,0,0,0,0,36,37,126,118,155,134,144,128,129,110,111,117,116,99,107,52,54,54,56,23,29,0,0,0,0,0,0,0,0,0,0,0,0,0,0,0,0,0,0,0,0,0,0,0,0,0,0,0,0,-8,-8,-8,-8,-8,-8,-8,-8,-1844,-1678,-1429,-1195,-29963,-4934,-29988,-29989,-29989,-29990,-29990,-29991,-29991,-29992]} 1. e4 {[%emt 0:01:00]} e6 {[%emt 0:02:00]} 2. d4 {[%emt 0:00:30]} d5 {[%emt 0:00:30]} 3. e5 {[%emt 0:00:30]} c5 {[%emt 0:00:30]} 4. c3 {[%emt 0:00:30]} Nc6 {[%emt 0:00:30]} 5. Nf3 {[%emt 0:00:30]} Qb6 {[%emt 0:00:30]} 6. Na3 {[%emt 0:00:30][%cal Bb1a3,Ba3c2,Bc2e3][%mdl 32]} cxd4 {[%emt 0:00:30]} 7. cxd4 {[%emt 0:00:30]} Bd7 {[%emt 0:00:30]} 8. Nc2 {[%emt 0:00:30]} Nb4 {[%emt 0:00:30] C02: French: Advance Variation.} 9. Ne3 {[%emt 0:00:30]} Bb5 {[%emt 0:00:30]} 10. Be2 {[%emt 0:00:00]} Qa6 {[%emt 0:02:30] The position is equal.} 11. Bxb5+ {[%emt 0:00:00]} Qxb5 {[%emt 0:00:30]} 12. Qe2 {[%emt 0:03:30] [#]} Qxe2+ $146 {[%emt 0:00:30]} ({Predecessor:} 12... a6 13. Qxb5+ axb5 14. Ke2 Nxa2 15. Bd2 Ne7 16. Nc2 Nc6 17. Na3 b4 18. Rxa2 bxa3 19. Rb1 Nd8 {½-½ Volokitin,A (2687)-Meier,G (2655) FRA-chT Top 12 2013 (1.1)}) 13. Kxe2 {[%emt 0:00:30]} Nc6 {[%emt 0:00:30]} 14. Bd2 {[%emt 0:00:30]} f6 {[%emt 0:02:30]} 15. b4 {[%emt 0:03:30][%cal Bb2b4,Bb4b5][%mdl 32]} a6 {[%emt 0:02:30]} 16. Rhb1 {[%emt 0:01:30]} Na7 {[%emt 0:05:30]} (16... Nge7 $14) 17. a4 $16 {[%emt 0:01:30]} b6 {[%emt 0:00:30]} 18. b5 {[%emt 0:02:30]} a5 {[%emt 0:00:30]} 19. Rc1 {[%emt 0:01:30]} Kd7 {[%emt 0:00:30] Prevents Rc7+.} 20. Rc2 {[%emt 0:00:30]} Rc8 {[%emt 0:03:30]} 21. Rxc8 {[%emt 0:05:30]} Nxc8 {[%emt 0:00:30]} 22. Rc1 {[%emt 0:00:00]} Nge7 {[%emt 0:20:30]} 23. Nf1 {[%emt 0:00:00]} (23. Ne1 $16) 23... Ng6 $14 {[%emt 0:07:30]} 24. h4 {[%emt 0:03:30] h5 would be deadly.} h5 {[%emt 0:00:30]} 25. Kd3 {[%emt 0:00:30]} Be7 {[%emt 0:03:30]} 26. Ng3 {[%emt 0:21:30]} fxe5 {[%emt 0:08:30]} 27. Nxe5+ {[%emt 0:00:00]} Nxe5+ {[%emt 0:03:30]} 28. dxe5 {[%emt 0:00:00]} Bxh4 {[%emt 0:00:30]} 29. Rh1 {[%emt 0:00:30]} Bxg3 {[%emt 0:00:30]} 30. fxg3 $11 {[%emt 0:00:30][%mdl 4096] Endgame KRB-KRN} Ne7 {[%emt 0:19:39]} 31. Be3 {[%emt 0:00:30]} Rc8 {[%emt 0:06:27]} 32. Bxb6 {[%emt 0:27:30][%cal Oh1h4]} Rc4 {[%emt 0:00:10]} 33. Rh4 {[%emt 0:10:34]} ({But not} 33. Bxa5 Rxa4 34. Bc3 Rg4 $15) 33... Ng6 {[%emt 0:00:04][%csl LRe5,LRh4]} 34. Rxh5 {[%emt 0:00:27]} Rg4 {[%emt 0:03:23] Prevents Rg5.} 35. Bf2 {[%emt 0:01:38]} Ke8 {[%emt 0:00:21]} 36. Be1 {[%emt 0:00:44]} Rxa4 {[%emt 0:04:01]} 37. b6 {[%emt 0:00:12]} Kd7 {[%emt 0:00:09]} 38. Rg5 {[%emt 0:00:09]} (38. b7 $5 Kc7 $8 39. Rg5 $15) 38... Rg4 $1 {[%emt 0:00:00][%mdl 64] [#] Decoy} 39. Rxg4 {[%emt 0:07:55]} (39. b7 {with more complications.} Kc7 40. Rxg4 Nxe5+ 41. Ke3) 39... Nxe5+ {[%emt 0:00:00]} 40. Kd4 {[%emt 0:01:22]} Nxg4 {[%emt 0:00:00] KB-KN} 41. Kc5 {[%emt 0:00:00][%cal Oe1c3]} (41. Bxa5 $2 {perishes.} Kc6 42. Kc3 Ne5 $19) 41... a4 {[%emt 0:01:01] Strongly threatening ...a3.} 42. Bc3 {[%emt 0:00:00][%cal Oc5b5] [#] Threatens to win with Kb5!} a3 {[%emt 0:01:45] Hoping for ...a2.} 43. Kb5 $1 {[%emt 0:01:03]} Nf6 $1 {[%emt 0:00:57] And now ...a2 would win.} (43... Kc8 44. Ka6 a2 45. b7+ Kb8 46. Kb6 a1=B 47. Bxa1 e5 48. Bc3 g6 49. Bb4 Nh6 50. Bd6#) 44. Ka6 $2 {[%emt 0:00:35][%mdl 8192]} (44. Be5 $11 Ke7 45. b7 (45. Kc6 $2 a2 $19)) 44... Kc6 $19 {[%emt 0:00:35]} 45. b7 {[%emt 0:00:33]} Nd7 {[%emt 0:00:05] aiming for ...Kc5.} 46. Bxg7 {[%emt 0:00:17]} a2 {[%emt 0:00:24]} (46... e5 $142 47. Bxe5 Kc5 48. Ba1 d4 49. b8=B Nxb8+ 50. Ka5 d3 51. Bc3 a2 52. g4 Nc6+ 53. Ka6 d2 54. Bg7 d1=Q 55. Bf8+ Kd5 56. Bg7 Qa4+ 57. Kb7 Qb5+ 58. Kc8 Qb8+ 59. Kd7 Qd8#) 47. Bc3 {[%emt 0:01:51]} e5 {[%emt 0:01:02] Black mates.} 48. Ka5 {[%emt 0:01:10]} d4 {[%emt 0:00:09][%cal Bd5d4,Bd4d3,Bd3d2][%mdl 32]} 49. Ba1 {[%emt 0:01:05]} d3 {[%emt 0:00:30]} 50. Bc3 {[%emt 0:00:00]} d2 {Never resign too early!   Weighted Error Value: White=0.51/Black=0.15 (very precise)} 0-1

[Event "Turkish Youth Championships 2023"]
[Site "Samsun"]
[Date "2023.05.22"]
[Round "6.8"]
[White "Binboga, Yaman"]
[Black "Demirbas, Emre"]
[Result "0-1"]
[WhiteElo "1653"]
[BlackElo "2013"]
[Annotator "TA"]
[PlyCount "76"]
[EventDate "2023.05.19"]
[EventType "swiss"]
[EventCountry "TUR"]
[TimeControl "5400+30"]

{[%evp 27,76,14,14,14,12,8,24,33,68,66,76,3,41,28,50,52,59,55,71,64,70,66,55,72,67,75,99,94,98,101,100,90,77,0,62,0,0,0,0,0,0,0,0,-217,-227,-216,-192,-225,-221,-634,-630]} 1. e4 {[%emt 0:01:00]} c5 {[%emt 0:02:00]} 2. Nf3 {[%emt 0:00:30]} e6 {[%emt 0:00:30]} 3. d4 {[%emt 0:00:30]} cxd4 {[%emt 0:00:30]} 4. Nxd4 {[%emt 0:00:30]} Nf6 {[%emt 0:00:30]} 5. Nc3 {[%emt 0:00:30]} Nc6 {[%emt 0:00:30]} 6. Nxc6 {[%emt 0:00:00]} bxc6 {[%emt 0:00:30]} 7. e5 {[%emt 0:00:00]} Nd5 {[%emt 0:00:30]} 8. Ne4 {[%emt 0:00:30]} Qc7 {[%emt 0:00:30]} 9. f4 {[%emt 0:00:00]} Qb6 {[%emt 0:01:30]} 10. c4 {[%emt 0:00:00]} Bb4+ {[%emt 0:00:30]} 11. Ke2 {[%emt 0:00:30]} f5 {[%emt 0:00:00]} 12. Nf2 {[%emt 0:00:30]} Ba6 {[%emt 0:06:00]} 13. Kf3 {[%emt 0:00:30]} Ne7 {[%emt 0:00:30]} 14. Be3 {[%emt 0:00:30]} Bc5 {[%emt 0:02:30]} 15. Bxc5 {[%emt 0:00:30] B45: Sicilian Four Knights.} Qxc5 {[%emt 0:00:00]} 16. Qd6 {[%emt 0:00:00]} Qb6 {[%emt 0:04:00]} 17. b3 {[%emt 0:00:00] White has an edge.} Nc8 {[%emt 0:05:30]} 18. Qa3 {[%emt 0:08:30] Hoping for c5.} Bb7 {[%emt 0:01:30] [#]} 19. Rd1 {[%emt 0:45:30]} ({White should play} 19. Nd3 $1 $16) 19... Ne7 {[%emt 0:05:30]} 20. Qd6 {[%emt 0:01:30] [#]} Rd8 $146 {[%emt 0:01:30][%cal Og7g5]} ({Predecessor:} 20... c5+ 21. Kg3 Qxd6 22. exd6 Ng8 23. Nd3 Rc8 24. Kf2 Nf6 {½-½ Bujdak,P (2259)-Ploscaru,S (2275) SM-2020-0-00419}) 21. Nd3 {[%emt 0:00:30]} Nc8 {[%emt 0:01:30][%cal Be7c8,Bc8d6,Bd6e4][%mdl 32]} 22. Qc5 {[%emt 0:04:30]} d6 {[%emt 0:01:30] [#]} 23. exd6 {[%emt 0:07:30]} Nxd6 {[%emt 0:01:30]} 24. Qxb6 {[%emt 0:02:30]} axb6 {[%emt 0:00:30]} 25. c5 {[%emt 0:02:30]} Ne4 {[%emt 0:00:30]} 26. cxb6 {[%emt 0:00:30]} c5 {[%emt 0:01:30] And now ...Nc3+ would win.} 27. Ke3 {[%emt 0:00:30][%cal Od3e5]} Ke7 {[%emt 0:03:30][%cal Oe6e5]} 28. Be2 {[%emt 0:00:30] Black must now prevent Bf3.} Rd6 {[%emt 0:02:30]} 29. Ne5 {[%emt 0:08:00] aiming for Rxd6.} (29. Bf3 {simplifies} Rxb6 30. Bxe4 Bxe4 31. Nxc5 Bd5 32. Rd2) 29... Bd5 {[%emt 0:02:30]} 30. Nc4 {[%emt 0:12:08]} ({White should try} 30. Bf3 $16) 30... Rc6 {[%emt 0:04:30]} (30... Bxc4 $11 31. Bxc4 Rxb6) 31. a4 {[%emt 0:04:07]} (31. Rc1 $14) 31... Bxc4 $1 $11 {[%emt 0:04:30][%mdl 64] Remove Defender} 32. Bxc4 {[%emt 0:00:30] Strongly threatening a5.} Rxb6 {[%emt 0:00:00]} 33. a5 {[%emt 0:00:19]} Rb4 {[%emt 0:01:00]} 34. Rhe1 {[%emt 0:01:07][%cal Og2g4]} Ra8 {[%emt 0:08:30]} 35. Kd3 $2 {[%emt 0:00:48]} (35. Ra1 $11) 35... Nf2+ $19 {[%emt 0:00:30]} ({Not} 35... Rxa5 36. Ra1 Rxa1 37. Rxa1 $17) 36. Kc2 {[%emt 0:00:30]} Nxd1 {[%emt 0:00:00]} 37. Rxe6+ {[%emt 0:00:28]} Kd7 {[%emt 0:00:00][%cal Ob4c4] Threatens to win with ...Rxc4+!} 38. Re1 $2 {[%emt 0:00:05]} (38. Re2) 38... Nf2 {Weighted Error Value: White=0.44/Black=0.12 (very precise)} 0-1

[Event "Turkish Youth Championships 2023"]
[Site "Samsun"]
[Date "2023.05.22"]
[Round "6.10"]
[White "Saka, Omer"]
[Black "Topaloglu, Mehmet Utkan"]
[Result "1/2-1/2"]
[WhiteElo "1843"]
[BlackElo "1511"]
[Annotator "COMBH"]
[PlyCount "90"]
[EventDate "2023.05.19"]
[EventType "swiss"]
[EventCountry "TUR"]
[TimeControl "5400+30"]

1. d4 {[%emt 0:01:00]} Nf6 {[%emt 0:01:00]} 2. Nf3 {[%emt 0:00:30]} e6 {[%emt 0:00:30]} 3. g3 {[%emt 0:00:30]} b6 {[%emt 0:00:30]} 4. Bg2 {[%emt 0:00:30]} Bb7 {[%emt 0:00:30]} 5. c4 {[%emt 0:00:30]} Bb4+ {[%emt 0:01:30]} 6. Bd2 {[%emt 0:00:30]} Bxd2+ {[%emt 0:01:30]} 7. Nbxd2 {[%emt 0:01:30]} O-O {[%emt 0:00:30]} 8. O-O {[%emt 0:00:00]} d6 {[%emt 0:01:30]} 9. Qc2 {[%emt 0:00:00]} Nbd7 {[%emt 0:02:30]} 10. e4 {[%emt 0:06:30]} e5 {[%emt 0:01:30]} 11. d5 {[%emt 0:00:30]} a5 {[%emt 0:06:30]} 12. b3 {[%emt 0:02:30]} c6 {[%emt 0:02:30]} 13. dxc6 {[%emt 0:07:30]} Bxc6 {[%emt 0:00:30]} 14. Rfd1 {[%emt 0:00:30]} Nc5 {[%emt 0:02:30]} 15. Ne1 {[%emt 0:01:30]} Qe7 {[%emt 0:02:30]} 16. f3 {[%emt 0:01:30]} Rfd8 {[%emt 0:10:30]} 17. Bf1 {[%emt 0:11:30]} Nfd7 {[%emt 0:03:30]} 18. Nb1 {[%emt 0:06:30]} Nf8 {[%emt 0:03:30]} 19. Nc3 {[%emt 0:01:30]} Nfe6 {[%emt 0:01:30]} 20. Qf2 {[%emt 0:01:30]} Nd4 {[%emt 0:01:30]} 21. Nc2 {[%emt 0:01:30]} Nxc2 {[%emt 0:03:30]} 22. Qxc2 {[%emt 0:00:30]} Ne6 {[%emt 0:00:00]} 23. Qf2 {[%emt 0:01:30]} Rab8 {[%emt 0:05:00]} 24. Rd2 {[%emt 0:05:30]} f5 {[%emt 0:04:30]} 25. exf5 {[%emt 0:08:30]} Nd4 {[%emt 0:00:30]} 26. Bg2 {[%emt 0:00:00]} Nxf5 {[%emt 0:01:30]} 27. Re1 {[%emt 0:02:00]} Qb7 {[%emt 0:04:30]} 28. f4 {[%emt 0:06:30]} Bxg2 {[%emt 0:06:30]} 29. Qxg2 {[%emt 0:00:30]} Qxg2+ {[%emt 0:00:30]} 30. Kxg2 {[%emt 0:00:30]} exf4 {[%emt 0:01:30]} 31. gxf4 {[%emt 0:01:30]} Nh4+ {[%emt 0:03:30]} 32. Kg3 {[%emt 0:01:30]} Nf5+ {[%emt 0:00:00]} 33. Kg4 {[%emt 0:01:30]} Rf8 {[%emt 0:00:00]} 34. Ne4 {[%emt 0:05:30]} Rbe8 {[%emt 0:03:30]} 35. Rde2 {[%emt 0:01:30]} Re6 {[%emt 0:01:30]} 36. Ng3 {[%emt 0:05:02]} Rg6+ {[%emt 0:03:30]} 37. Kh3 {[%emt 0:00:39]} Rh6+ {[%emt 0:00:30]} 38. Kg2 {[%emt 0:01:31]} Nh4+ {[%emt 0:01:30]} 39. Kh1 {[%emt 0:00:15]} Rxf4 {[%emt 0:00:00]} 40. Re8+ {[%emt 0:02:53]} Rf8 {[%emt 0:00:00]} 41. Rxf8+ {[%emt 0:00:57]} Kxf8 {[%emt 0:00:00]} 42. Rd1 {[%emt 0:00:05]} Rf6 {[%emt 0:03:23]} 43. Kg1 {[%emt 0:01:43]} Nf3+ {[%emt 0:01:12]} 44. Kg2 {[%emt 0:00:30]} Nh4+ {[%emt 0:00:30]} 45. Kg1 {[%emt 0:00:30]} Ke7 1/2-1/2

[Event "Turkish Youth Championships 2023"]
[Site "Samsun"]
[Date "2023.05.22"]
[Round "6.11"]
[White "Cicek, Bilal Emre"]
[Black "Dogan, Umut Anil"]
[Result "0-1"]
[WhiteElo "1600"]
[BlackElo "1857"]
[Annotator "COMBH"]
[PlyCount "66"]
[EventDate "2023.05.19"]
[EventType "swiss"]
[EventCountry "TUR"]
[TimeControl "5400+30"]

1. d4 {[%emt 0:01:00]} Nf6 {[%emt 0:03:00]} 2. Nc3 {[%emt 0:00:30]} d5 {[%emt 0:00:30]} 3. Bf4 {[%emt 0:00:00]} e6 {[%emt 0:03:30]} 4. Nf3 {[%emt 0:00:00]} Bd6 {[%emt 0:00:30]} 5. e3 {[%emt 0:00:00]} a6 {[%emt 0:01:30]} 6. Bd3 {[%emt 0:00:00]} c5 {[%emt 0:01:30]} 7. dxc5 {[%emt 0:00:00]} Bxc5 {[%emt 0:00:30]} 8. O-O {[%emt 0:00:00]} b5 {[%emt 0:03:30]} 9. e4 {[%emt 0:12:30]} Bb7 {[%emt 0:07:30]} 10. e5 {[%emt 0:02:30]} Nfd7 {[%emt 0:04:30]} 11. Ne2 {[%emt 0:02:30]} Nc6 {[%emt 0:00:30]} 12. Ng3 {[%emt 0:00:30]} g6 {[%emt 0:07:30]} 13. c3 {[%emt 0:07:30]} Qc7 {[%emt 0:01:30]} 14. Re1 {[%emt 0:00:30]} h6 {[%emt 0:00:30]} 15. h4 {[%emt 0:01:30]} g5 {[%emt 0:18:30]} 16. hxg5 {[%emt 0:01:30]} hxg5 {[%emt 0:00:30]} 17. Nxg5 {[%emt 0:09:30]} Ndxe5 {[%emt 0:01:30]} 18. Rxe5 {[%emt 0:12:30]} Nxe5 {[%emt 0:01:30]} 19. Qe2 {[%emt 0:02:30]} Bd6 {[%emt 0:01:30]} 20. Re1 {[%emt 0:00:30]} O-O-O {[%emt 0:05:30]} 21. Bxe5 {[%emt 0:03:30]} Bxe5 {[%emt 0:00:30]} 22. Nxf7 {[%emt 0:00:30]} Qxf7 {[%emt 0:05:30]} 23. Qxe5 {[%emt 0:00:30]} Rh6 {[%emt 0:02:30]} 24. a4 {[%emt 0:07:30]} bxa4 {[%emt 0:02:30]} 25. Ra1 {[%emt 0:04:30]} Rf8 {[%emt 0:02:30]} 26. Qe3 {[%emt 0:03:30]} Rh4 {[%emt 0:02:30]} 27. Qc5+ {[%emt 0:05:30]} Kb8 {[%emt 0:00:30]} 28. Re1 {[%emt 0:08:42]} d4 {[%emt 0:05:17]} 29. f3 {[%emt 0:04:03]} Rg8 {[%emt 0:04:55]} 30. Nf5 {[%emt 0:07:08]} exf5 {[%emt 0:02:17]} 31. Re7 {[%emt 0:00:01]} Rxg2+ {[%emt 0:01:44]} 32. Kf1 {[%emt 0:00:02]} Rh1+ {[%emt 0:01:07]} 33. Kxg2 {[%emt 0:00:37]} Qg6+ 0-1

[Event "Turkish Youth Championships 2023"]
[Site "Samsun"]
[Date "2023.05.22"]
[Round "6.12"]
[White "Sahbudak, Baris Cinar"]
[Black "Hasirci, Ozgur Deniz"]
[Result "0-1"]
[WhiteElo "1603"]
[BlackElo "1763"]
[Annotator "COMBH"]
[PlyCount "80"]
[EventDate "2023.05.19"]
[EventType "swiss"]
[EventCountry "TUR"]
[TimeControl "5400+30"]

1. e4 {[%emt 0:01:00]} c5 {[%emt 0:01:00]} 2. Nc3 {[%emt 0:00:30]} Nc6 {[%emt 0:00:30]} 3. f4 {[%emt 0:00:00]} g6 {[%emt 0:00:30]} 4. Nf3 {[%emt 0:00:00]} Bg7 {[%emt 0:00:30]} 5. Bb5 {[%emt 0:00:30]} Nd4 {[%emt 0:00:30]} 6. O-O {[%emt 0:00:30]} e6 {[%emt 0:01:30]} 7. Nxd4 {[%emt 0:00:30]} cxd4 {[%emt 0:00:30]} 8. Ne2 {[%emt 0:00:30]} Ne7 {[%emt 0:00:00]} 9. Kh1 {[%emt 0:02:30]} O-O {[%emt 0:01:00]} 10. c3 {[%emt 0:02:30]} a6 {[%emt 0:09:30]} 11. Bd3 {[%emt 0:01:30]} Nc6 {[%emt 0:03:30]} 12. b3 {[%emt 0:05:30]} dxc3 {[%emt 0:02:30]} 13. dxc3 {[%emt 0:00:00]} f5 {[%emt 0:11:30]} 14. e5 {[%emt 0:02:00]} g5 {[%emt 0:01:30]} 15. Nd4 {[%emt 0:05:30]} Ne7 {[%emt 0:04:30]} 16. Rf3 {[%emt 0:10:30]} g4 {[%emt 0:20:30]} 17. Rf1 {[%emt 0:02:30]} d6 {[%emt 0:02:30]} 18. Bc4 {[%emt 0:03:30]} d5 {[%emt 0:03:30]} 19. Be2 {[%emt 0:00:30]} Rf7 {[%emt 0:00:30]} 20. Ba3 {[%emt 0:04:30]} Ng6 {[%emt 0:05:30]} 21. c4 {[%emt 0:06:30]} Bf8 {[%emt 0:00:30]} 22. Bxf8 {[%emt 0:04:30]} Nxf8 {[%emt 0:00:00]} 23. cxd5 {[%emt 0:00:30]} Qxd5 {[%emt 0:00:00]} 24. Bc4 {[%emt 0:02:30]} Qe4 {[%emt 0:00:30]} 25. Qd2 {[%emt 0:08:30]} Rd7 {[%emt 0:04:30]} 26. Rfd1 {[%emt 0:02:30]} b5 {[%emt 0:00:30]} 27. Bf1 {[%emt 0:00:30]} Bb7 {[%emt 0:00:30]} 28. Qf2 {[%emt 0:06:30]} Rad8 {[%emt 0:01:30]} 29. Qh4 {[%emt 0:12:44]} Rxd4 {[%emt 0:00:00]} 30. Qg5+ {[%emt 0:00:07]} Ng6 {[%emt 0:00:00]} 31. Qxd8+ {[%emt 0:00:48]} Rxd8 {[%emt 0:00:30]} 32. Rxd8+ {[%emt 0:00:30]} Nf8 {[%emt 0:00:00]} 33. Rb8 {[%emt 0:00:00]} Bd5 {[%emt 0:00:00]} 34. Rc1 {[%emt 0:00:35]} Qxf4 {[%emt 0:00:00]} 35. Rbc8 {[%emt 0:00:37]} Bc4 {[%emt 0:00:00]} 36. Rd1 {[%emt 0:00:25]} Bxf1 {[%emt 0:00:30]} 37. Rdd8 {[%emt 0:00:00]} Be2 {[%emt 0:00:30]} 38. Rxf8+ {[%emt 0:00:17]} Kg7 {[%emt 0:00:30]} 39. Rg8+ {[%emt 0:00:13]} Kh6 {[%emt 0:00:30]} 40. h3 {[%emt 0:00:21]} g3 0-1

[Event "Turkish Youth Championships 2023"]
[Site "Samsun"]
[Date "2023.05.22"]
[Round "6.15"]
[White "Biyiksiz, Ali Batuhan"]
[Black "Adali, Umut"]
[Result "1-0"]
[WhiteElo "2107"]
[BlackElo "1441"]
[Annotator "TA"]
[PlyCount "135"]
[EventDate "2023.05.19"]
[EventType "swiss"]
[EventCountry "TUR"]
[TimeControl "5400+30"]

{[%evp 26,134,57,-1,15,-28,7,6,36,-10,-12,-47,3,13,13,-21,-19,-18,0,-13,6,0,0,0,3,0,0,0,0,0,0,0,0,0,0,-52,-18,-23,0,-168,-5,-12,-11,-35,0,0,0,0,18,13,7,12,29,0,97,97,215,196,359,359,323,291,281,278,523,501,480,418,801,791,780,780,681,570,938,937,937,916,1211,934,7039,1368,4578,1341,1266,1204,1310,1257,1155,1048,2048,1826,12838,12836,29985,29986,29986,29986,29988,29989,29989,29990,29993,29994,29996,743,29997,29998,29998,29999,29999]} 1. e4 {[%emt 0:01:00]} e5 {[%emt 0:01:00]} 2. Nf3 {[%emt 0:01:30]} Nc6 {[%emt 0:00:30]} 3. Bb5 {[%emt 0:00:30]} a6 {[%emt 0:00:30]} 4. Ba4 {[%emt 0:00:30]} Nf6 {[%emt 0:00:30]} 5. d3 {[%emt 0:00:30]} b5 {[%emt 0:00:30]} 6. Bb3 {[%emt 0:00:30]} Be7 {[%emt 0:00:30]} 7. O-O {[%emt 0:00:30]} d6 {[%emt 0:00:30]} 8. h3 {[%emt 0:00:30]} O-O {[%emt 0:00:30]} 9. c3 {[%emt 0:00:30]} Na5 {[%emt 0:00:00]} 10. Bc2 {[%emt 0:00:30]} c5 {[%emt 0:00:00]} 11. Nbd2 {[%emt 0:00:30]} Re8 {[%emt 0:00:00]} 12. Re1 {[%emt 0:00:00]} Bb7 {[%emt 0:00:00]} 13. Nf1 {[%emt 0:00:00]} Bf8 {[%emt 0:00:00]} 14. Ng3 {[%emt 0:00:30]} (14. Bg5 $14) 14... d5 {[%emt 0:00:00] C92: Closed Ruy Lopez: 9...Be6, Karpov and Flohr-Zaitsev Variations.} 15. Qe2 {[%emt 0:01:30] [#]} Qd7 $146 {[%emt 0:07:30]} ({Predecessor:} 15... Qb6 16. Nh4 g6 17. Qf3 c4 18. Bg5 cxd3 19. Bxd3 Nxe4 20. Nxe4 dxe4 21. Bxe4 Bxe4 22. Rxe4 {0-1 Diaz Perez,M (2433)-Kamsky,G (2666) Titled Tuesday intern op 16th Aug Late blitz 2022 (2)}) 16. Bg5 {[%emt 0:00:30] And now Bxf6 would win.} Qc6 {[%emt 0:01:30] The position is equal.} 17. Qf1 {[%emt 0:10:30]} (17. Bxf6 $14 Qxf6 18. exd5) 17... h6 $11 {[%emt 0:00:30]} 18. Bc1 {[%emt 0:02:30]} c4 {[%emt 0:01:30]} (18... Rad8 $15) 19. d4 {[%emt 0:01:30]} exd4 {[%emt 0:03:30] ...d3 would be deadly.} 20. Nxd4 {[%emt 0:00:30]} (20. e5 $5 {[%cal Rf3d4]} d3 21. Nd4 $11) 20... Qc7 {[%emt 0:00:30][%cal Rf6e4]} 21. exd5 {[%emt 0:02:30]} Bxd5 {[%emt 0:01:30]} 22. Bd2 {[%emt 0:02:30]} Bc5 {[%emt 0:00:30]} 23. Ngf5 {[%emt 0:01:30]} Bxd4 {[%emt 0:01:30]} 24. Nxd4 {[%emt 0:00:30]} Nc6 {[%emt 0:00:00]} 25. Be3 {[%emt 0:01:30]} Be4 {[%emt 0:00:00]} 26. Bxe4 {[%emt 0:03:30]} Nxe4 {[%emt 0:00:30]} 27. Qe2 {[%emt 0:01:30]} Nf6 {[%emt 0:03:30]} 28. Qf3 {[%emt 0:00:30]} Ne5 {[%emt 0:02:30]} 29. Qg3 {[%emt 0:00:30][%cal Oe3f4] Hoping for Bf4!} Ne4 {[%emt 0:02:30]} 30. Qh2 {[%emt 0:00:30]} ({Better is} 30. Qf4 $11 Nd6 31. Qg3) 30... Qd7 {[%emt 0:01:30]} 31. f3 {[%emt 0:02:30]} Nf6 {[%emt 0:06:30] Excellent horsemanship.} (31... Nc5 $5 {[%cal Rc5d3]}) 32. Qg3 $2 {[%emt 0:12:30] [#]} (32. Bxh6 $1 $11 {and White is okay.} Nd3 33. Rxe8+ (33. Qg3 $2 Rxe1+ 34. Rxe1 Nh5 $17) 33... Nxe8 34. Qg3) 32... Ng6 $2 {[%emt 0:01:30]} (32... Nd3 $1 $19 33. Re2 (33. Bxh6 $2 Rxe1+ 34. Rxe1 Nh5 $19) 33... Kh7) 33. Bd2 {[%emt 0:10:30]} Rad8 {[%emt 0:03:30]} 34. a3 {[%emt 0:06:30]} Qd6 {[%emt 0:10:30]} 35. Rxe8+ {[%emt 0:01:30]} Nxe8 {[%emt 0:00:00]} 36. Qxd6 {[%emt 0:01:30]} Rxd6 {[%emt 0:00:00]} 37. Be3 {[%emt 0:01:30]} Nf6 {[%emt 0:00:30]} 38. a4 {[%emt 0:03:30]} Nd5 {[%emt 0:05:30]} 39. Bd2 {[%emt 0:00:30]} (39. axb5 $5 axb5 40. Nxb5 $11) 39... b4 {[%emt 0:00:30]} 40. cxb4 $16 {[%emt 0:00:30] Black is now going downhill.} Ndf4 {[%emt 0:00:00] [#]} (40... Nxb4 $16 {keeps fighting.} 41. Bxb4 Rxd4) 41. Bc3 $1 $18 {[%emt 0:01:30]} Rxd4 $2 {[%emt 0:00:00]} (41... Ne7 42. Kh2 Nfd5) 42. Bxd4 {[%emt 0:00:30][%mdl 4096] Endgame KRB-KNN} Ne2+ {[%emt 0:00:30]} 43. Kf2 {[%emt 0:00:30]} Nxd4 {[%emt 0:00:30]} 44. Rd1 {[%emt 0:00:30]} Nc2 {[%emt 0:00:30]} (44... Ne6 45. b5 axb5) 45. b5 {[%emt 0:00:30]} axb5 {[%emt 0:00:30]} 46. axb5 {[%emt 0:00:30]} Nf4 {[%emt 0:00:30]} (46... Kf8 $142 47. b6 Nb4) 47. b6 {[%emt 0:00:30] Threatens to win with b7.} Nb4 {[%emt 0:00:30]} 48. b7 {[%emt 0:00:30]} Nc6 {[%emt 0:00:30] [#]} 49. Rd8+ $3 {[%emt 0:00:30][%mdl 576] Decoy, Promotion} Nxd8 {[%emt 0:00:30]} (49... Kh7 50. Ke3) 50. b8=Q {[%emt 0:00:30]} ({Inferior is} 50. b8=R Nfe6 $11) 50... Nfe6 {[%emt 0:00:30]} 51. Qc8 {[%emt 0:01:30]} Kh7 {[%emt 0:00:30]} 52. Qxc4 {[%emt 0:00:00]} g6 {[%emt 0:00:30]} 53. b4 {[%emt 0:00:00]} Kg7 {[%emt 0:00:30]} 54. b5 {[%emt 0:00:30]} Nb7 {[%emt 0:00:00]} 55. b6 {[%emt 0:00:00]} Ned8 {[%emt 0:00:00]} 56. Qc7 {[%emt 0:00:00]} Kf6 {[%emt 0:00:00]} 57. f4 {[%emt 0:00:30][%csl Gf4][%cal Rc7e5,Bf3f4,Bf4f5][%mdl 32]} Kg7 {[%emt 0:00:00]} 58. g4 {[%emt 0:00:30] aiming for Qe7.} Kh7 {[%emt 0:00:00]} 59. f5 {[%emt 0:00:00]} g5 {[%emt 0:00:00]} 60. Ke3 {[%emt 0:00:00]} Kg7 {[%emt 0:00:00]} 61. Ke4 {[%emt 0:00:30]} Kh7 {[%emt 0:00:00]} 62. Ke5 {[%emt 0:00:30]} Kg7 {[%emt 0:00:00]} 63. Qd7 {[%emt 0:00:30]} Kh7 {[%emt 0:00:00]} 64. Kf6 {[%emt 0:00:30]} Kg8 {[%emt 0:00:30]} 65. Qe8+ {[%emt 0:00:30]} Kh7 {[%emt 0:00:30]} 66. Qf8 {[%emt 0:00:30][%csl Gf6][%cal Rf8g7] White mates.} Ne6 {[%emt 0:00:30]} 67. fxe6 {[%emt 0:00:00]} fxe6 {[%emt 0:00:00]} 68. Qg7# {[%emt 0:00:00] Weighted Error Value: White=0.24 (precise) /Black=0.39} 1-0